[Event "Reykjavik Open 2025"]
[Site "Reykjavik"]
[Date "2025.04.13"]
[Round "7.29"]
[White "Thorfinnsson, Bjorn"]
[Black "Bourgois, Bastien"]
[Result "1-0"]
[Annotator "ChessBase"]
[ECO "A48"]
[WhiteElo "2386"]
[BlackElo "2112"]
[PlyCount "139"]
[EventDate "2025.04.09"]
[EventType "swiss"]
[EventCountry "ISL"]
[SourceTitle "playchess.com"]
[Source "ChessBase"]
[SourceQuality "1"]
[TimeControl "40/5400+30:1800+30"]

1. d4 {[%emt 0:00:03]} Nf6 {[%emt 0:00:04]} 2. Nf3 {[%emt 0:01:33]} g6 {[%emt 0:00:07]} 3. Bg5 {[%emt 0:00:20]} Bg7 {[%emt 0:00:51]} 4. Nbd2 {[%emt 0:00:15]} h6 {[%emt 0:01:29]} 5. Bh4 {[%emt 0:00:13]} d6 {[%emt 0:00:49]} 6. e4 {[%emt 0:00:50]} O-O {[%emt 0:02:17]} 7. c3 {[%emt 0:02:34]} Qe8 {[%emt 0:03:47]} 8. e5 {[%emt 0:01:19]} Nh5 {[%emt 0:02:20]} 9. Rg1 {[%emt 0:03:37]} dxe5 {[%emt 0:12:30]} 10. dxe5 {[%emt 0:04:34]} Nc6 {[%emt 0:01:57]} 11. g4 {[%emt 0:04:31]} Nf4 {[%emt 0:00:38]} 12. Bg3 {[%emt 0:03:17]} Nd5 {[%emt 0:05:13]} 13. Nb3 {[%emt 0:12:44]} Nb6 {[%emt 0:03:23]} 14. Bf4 {[%emt 0:05:03]} Be6 {[%emt 0:03:39]} 15. Qc1 {[%emt 0:04:24]} Kh7 {[%emt 0:04:30]} 16. Rg3 {[%emt 0:00:06]} Rh8 {[%emt 0:04:15]} 17. Nc5 {[%emt 0:03:08]} Qc8 {[%emt 0:05:05]} 18. Be2 {[%emt 0:09:41]} Nc4 {[%emt 0:04:43]} 19. Nxe6 {[%emt 0:04:34]} Qxe6 {[%emt 0:01:57]} 20. Rh3 {[%emt 0:00:42]} Kg8 {[%emt 0:04:20]} 21. Nd4 {[%emt 0:00:11]} Qd5 {[%emt 0:01:27]} 22. Bf3 {[%emt 0:01:44]} Qd7 {[%emt 0:01:12]} 23. e6 {[%emt 0:08:08]} fxe6 {[%emt 0:00:14]} 24. Nxc6 {[%emt 0:00:25]} bxc6 {[%emt 0:00:13]} 25. Qc2 {[%emt 0:00:23]} e5 {[%emt 0:01:34]} 26. Qb3 {[%emt 0:11:31]} exf4 {[%emt 0:06:13]} 27. Qxc4+ {[%emt 0:00:17]} Kh7 {[%emt 0:00:12]} 28. Rd1 {[%emt 0:00:45]} Qc8 {[%emt 0:00:25]} 29. Rh4 {[%emt 0:06:27]} Rb8 {[%emt 0:08:02]} 30. Be4 {[%emt 0:01:31]} Qg8 {[%emt 0:06:25]} 31. Qxc6 {[%emt 0:06:32]} Bf6 {[%emt 0:00:03]} 32. g5 {[%emt 0:00:31]} Bxg5 {[%emt 0:04:36]} 33. Rg4 {[%emt 0:00:11]} Rb6 {[%emt 0:01:11]} 34. Qd7 {[%emt 0:00:49]} Qe6 {[%emt 0:07:45]} 35. f3 {[%emt 0:00:15]} Rg8 {[%emt 0:00:51]} 36. Qxe6 {[%emt 0:02:35]} Rxe6 {[%emt 0:00:02]} 37. Rd7 {[%emt 0:00:10]} Rd6 {[%emt 0:02:55]} 38. Rxd6 {[%emt 0:00:26]} cxd6 {[%emt 0:00:30]} 39. h4 {[%emt 0:00:12]} Bf6 {[%emt 0:00:08]} 40. h5 {[%emt 0:01:32]} Bg5 {[%emt 0:01:57]} 41. Kd2 {[%emt 0:30:39]} Kg7 {[%emt 0:02:09]} 42. Bxg6 {[%emt 0:00:00]} Rb8 {[%emt 0:01:04]} 43. Kc2 {[%emt 0:00:00]} Rb5 {[%emt 0:00:45]} 44. Rg2 {[%emt 0:00:00]} Re5 {[%emt 0:00:48]} 45. Rd2 {[%emt 0:00:00]} d5 {[%emt 0:01:47]} 46. a4 {[%emt 0:00:00]} Re3 {[%emt 0:02:08]} 47. Rxd5 {[%emt 0:00:00]} Rxf3 {[%emt 0:00:21]} 48. b4 {[%emt 0:00:00]} Bf6 {[%emt 0:03:59]} 49. Rd3 {[%emt 0:00:00]} Rxd3 {[%emt 0:02:47]} 50. Kxd3 {[%emt 0:00:00]} f3 {[%emt 0:02:09]} 51. Be4 {[%emt 0:00:00]} f2 {[%emt 0:00:14]} 52. Bg2 {[%emt 0:00:00]} Kf7 {[%emt 0:00:50]} 53. a5 {[%emt 0:00:00]} Be5 {[%emt 0:05:17]} 54. b5 {[%emt 0:00:00]} Ke8 {[%emt 0:03:18]} 55. Ke4 {[%emt 0:01:30]} Bc7 {[%emt 0:01:50]} 56. b6 {[%emt 0:03:01]} axb6 {[%emt 0:00:17]} 57. a6 {[%emt 0:00:19]} Bb8 {[%emt 0:00:04]} 58. Kf5 {[%emt 0:00:15]} Kf7 {[%emt 0:07:32]} 59. Bd5+ {[%emt 0:00:16]} e6+ {[%emt 0:00:22]} 60. Bxe6+ {[%emt 0:00:05]} Ke7 {[%emt 0:00:05]} 61. Bc4 {[%emt 0:00:10]} Ba7 {[%emt 0:01:24]} 62. Kg6 {[%emt 0:00:28]} b5 {[%emt 0:00:18]} 63. Bxb5 {[%emt 0:01:29]} Be3 {[%emt 0:00:05]} 64. Bf1 {[%emt 0:00:33]} Kd6 {[%emt 0:00:54]} 65. c4 {[%emt 0:00:09]} Kc7 {[%emt 0:01:58]} 66. c5 {[%emt 0:00:59]} Kb8 {[%emt 0:00:35]} 67. Bg2 {[%emt 0:00:39]} Ka7 {[%emt 0:00:32]} 68. c6 {[%emt 0:00:02]} Kxa6 {[%emt 0:00:37]} 69. c7 {[%emt 0:00:07]} f1=Q {[%emt 0:00:20]} 70. c8=Q+ {[%emt 0:00:08]} 1-0

[Event "Reykjavik Open 2025"]
[Site "Reykjavik"]
[Date "2025.04.13"]
[Round "7.30"]
[White "Bjornsson, Sigurbjorn"]
[Black "Cramling Bellon, Anna"]
[Result "1-0"]
[Annotator "ChessBase"]
[ECO "B33"]
[WhiteElo "2303"]
[BlackElo "2046"]
[PlyCount "115"]
[EventDate "2025.04.09"]
[EventType "swiss"]
[EventCountry "ISL"]
[SourceTitle "playchess.com"]
[Source "ChessBase"]
[SourceQuality "1"]
[TimeControl "40/5400+30:1800+30"]

1. e4 {[%emt 0:02:06]} c5 {[%emt 0:00:07]} 2. Nf3 {[%emt 0:00:07]} e6 {[%emt 0:00:04]} 3. d4 {[%emt 0:00:53]} cxd4 {[%emt 0:00:04]} 4. Nxd4 {[%emt 0:00:03]} Nf6 {[%emt 0:00:04]} 5. Nc3 {[%emt 0:01:33]} Nc6 {[%emt 0:00:10]} 6. Ndb5 {[%emt 0:00:21]} d6 {[%emt 0:00:07]} 7. Bf4 {[%emt 0:00:19]} e5 {[%emt 0:00:05]} 8. Bg5 {[%emt 0:00:05]} a6 {[%emt 0:00:05]} 9. Na3 {[%emt 0:00:04]} b5 {[%emt 0:00:04]} 10. Nd5 {[%emt 0:00:07]} Be7 {[%emt 0:00:05]} 11. Bxf6 {[%emt 0:00:16]} Bxf6 {[%emt 0:00:04]} 12. c3 {[%emt 0:00:06]} Bg5 {[%emt 0:00:17]} 13. Nc2 {[%emt 0:00:15]} O-O {[%emt 0:00:17]} 14. a4 {[%emt 0:00:14]} bxa4 {[%emt 0:00:08]} 15. Rxa4 {[%emt 0:00:04]} a5 {[%emt 0:00:08]} 16. Bc4 {[%emt 0:00:24]} Rb8 {[%emt 0:01:29]} 17. b3 {[%emt 0:02:51]} Be6 {[%emt 0:06:35]} 18. h4 {[%emt 0:06:39]} Bh6 {[%emt 0:00:28]} 19. g3 {[%emt 0:00:53]} Kh8 {[%emt 0:02:20]} 20. Ra2 {[%emt 0:05:10]} f5 {[%emt 0:11:11]} 21. exf5 {[%emt 0:03:08]} Bxf5 {[%emt 0:02:00]} 22. Nce3 {[%emt 0:03:22]} Be4 {[%emt 0:26:55]} 23. O-O {[%emt 0:00:32]} Qd7 {[%emt 0:02:31]} 24. Qg4 {[%emt 0:01:05]} Qxg4 {[%emt 0:22:03]} 25. Nxg4 {[%emt 0:00:08]} Bxd5 {[%emt 0:05:40]} 26. Bxd5 {[%emt 0:00:15]} Ne7 {[%emt 0:00:03]} 27. Be6 {[%emt 0:01:21]} Rf3 {[%emt 0:02:06]} 28. Rd1 {[%emt 0:05:09]} Rxc3 {[%emt 0:03:35]} 29. Rxd6 {[%emt 0:02:34]} Nc6 {[%emt 0:06:32]} 30. Bc4 {[%emt 0:06:31]} Rc8 {[%emt 0:03:29]} 31. Rxc6 {[%emt 0:03:38]} Rxc6 {[%emt 0:00:05]} 32. Nxe5 {[%emt 0:00:05]} Rf6 {[%emt 0:06:16]} 33. Rxa5 {[%emt 0:00:56]} g6 {[%emt 0:00:29]} 34. Ra8+ {[%emt 0:03:37]} Rf8 {[%emt 0:01:17]} 35. Nf7+ {[%emt 0:00:18]} Kg7 {[%emt 0:00:05]} 36. Rxf8 {[%emt 0:00:06]} Kxf8 {[%emt 0:00:13]} 37. Nxh6 {[%emt 0:00:06]} Ke7 {[%emt 0:00:19]} 38. Kg2 {[%emt 0:00:23]} Kf6 {[%emt 0:01:02]} 39. Ng4+ {[%emt 0:00:08]} Kf5 {[%emt 0:00:35]} 40. Ne3+ {[%emt 0:00:07]} Ke5 {[%emt 0:00:08]} 41. Kf3 {[%emt 0:30:43]} Rc1 {[%emt 0:31:05]} 42. Bg8 {[%emt 0:00:40]} h5 {[%emt 0:00:13]} 43. Bc4 {[%emt 0:00:17]} Ra1 {[%emt 0:00:27]} 44. Nd5 {[%emt 0:00:34]} Ra7 {[%emt 0:00:00]} 45. Nf4 {[%emt 0:00:00]} Rg7 {[%emt 0:00:00]} 46. Bd3 {[%emt 0:00:00]} g5 {[%emt 0:00:00]} 47. Nxh5 {[%emt 0:00:00]} Rf7+ {[%emt 0:00:00]} 48. Ke3 {[%emt 0:00:00]} gxh4 {[%emt 0:00:00]} 49. f4+ {[%emt 0:00:00]} Kd6 {[%emt 0:00:00]} 50. gxh4 {[%emt 0:00:00]} Rb7 {[%emt 0:00:00]} 51. Bc4 {[%emt 0:00:00]} Rh7 {[%emt 0:00:00]} 52. Ng3 {[%emt 0:00:00]} Ke7 {[%emt 0:00:00]} 53. Bd3 {[%emt 0:00:00]} Rh8 {[%emt 0:00:00]} 54. h5 {[%emt 0:00:00]} Kf6 {[%emt 0:00:00]} 55. b4 {[%emt 0:00:00]} Re8+ {[%emt 0:00:00]} 56. Kf3 {[%emt 0:00:00]} Rb8 {[%emt 0:00:00]} 57. b5 {[%emt 0:00:00]} Rd8 {[%emt 0:00:00]} 58. Be4 {[%emt 0:00:00]} 1-0

[Event "Reykjavik Open 2025"]
[Site "Reykjavik"]
[Date "2025.04.13"]
[Round "7.31"]
[White "Borne, Felix"]
[Black "Williams, Simon K"]
[Result "1-0"]
[Annotator "ChessBase"]
[ECO "A04"]
[WhiteElo "2225"]
[BlackElo "2451"]
[PlyCount "89"]
[EventDate "2025.04.09"]
[EventType "swiss"]
[EventCountry "ISL"]
[SourceTitle "playchess.com"]
[Source "ChessBase"]
[SourceQuality "1"]
[TimeControl "40/5400+30:1800+30"]

1. Nf3 {[%emt 0:00:04]} f5 {[%emt 0:00:44]} 2. g3 {[%emt 0:00:14]} Nf6 {[%emt 0:00:18]} 3. Bg2 {[%emt 0:00:09]} e6 {[%emt 0:06:24]} 4. O-O {[%emt 0:01:00]} Be7 {[%emt 0:00:07]} 5. c4 {[%emt 0:01:51]} d5 {[%emt 0:02:16]} 6. b3 {[%emt 0:12:25]} Ne4 {[%emt 0:03:47]} 7. Bb2 {[%emt 0:01:51]} Bf6 {[%emt 0:00:05]} 8. Qc2 {[%emt 0:03:22]} Nc6 {[%emt 0:04:21]} 9. d3 {[%emt 0:08:43]} Nd6 {[%emt 0:09:56]} 10. Nbd2 {[%emt 0:09:53]} O-O {[%emt 0:00:30]} 11. a3 {[%emt 0:01:11]} a5 {[%emt 0:03:11]} 12. e4 {[%emt 0:04:50]} dxe4 {[%emt 0:02:14]} 13. dxe4 {[%emt 0:04:06]} Bxb2 {[%emt 0:11:34]} 14. Qxb2 {[%emt 0:00:06]} Nxe4 {[%emt 0:17:29]} 15. Nxe4 {[%emt 0:02:54]} fxe4 {[%emt 0:00:04]} 16. Nd2 {[%emt 0:08:37]} e5 {[%emt 0:00:07]} 17. Nxe4 {[%emt 0:01:36]} Nd4 {[%emt 0:09:08]} 18. f4 {[%emt 0:03:02]} Bg4 {[%emt 0:07:42]} 19. fxe5 {[%emt 0:02:52]} Nf3+ {[%emt 0:00:49]} 20. Bxf3 {[%emt 0:00:46]} Rxf3 {[%emt 0:00:35]} 21. Nf2 {[%emt 0:05:59]} Be6 {[%emt 0:01:40]} 22. Ne4 {[%emt 0:14:38]} Re3 {[%emt 0:05:15]} 23. Rae1 {[%emt 0:01:25]} Rxe1 {[%emt 0:01:13]} 24. Rxe1 {[%emt 0:00:01]} Qe7 {[%emt 0:00:08]} 25. c5 {[%emt 0:03:06]} Rd8 {[%emt 0:01:31]} 26. Qc3 {[%emt 0:01:48]} Bd5 {[%emt 0:00:32]} 27. b4 {[%emt 0:00:32]} axb4 {[%emt 0:04:56]} 28. axb4 {[%emt 0:00:05]} Re8 {[%emt 0:00:03]} 29. Qd4 {[%emt 0:03:44]} Be6 {[%emt 0:00:04]} 30. Qe3 {[%emt 0:01:39]} h6 {[%emt 0:00:07]} 31. Nf2 {[%emt 0:00:47]} Bd5 {[%emt 0:03:09]} 32. Nd3 {[%emt 0:00:07]} g5 {[%emt 0:00:38]} 33. Nf2 {[%emt 0:00:28]} Kg7 {[%emt 0:02:13]} 34. Ng4 {[%emt 0:00:09]} Bc6 {[%emt 0:00:21]} 35. Nf6 {[%emt 0:01:00]} Rd8 {[%emt 0:00:12]} 36. Qc3 {[%emt 0:00:46]} Qe6 {[%emt 0:00:07]} 37. Qc2 {[%emt 0:00:04]} Rh8 {[%emt 0:00:20]} 38. Nh5+ {[%emt 0:00:55]} Kf7 {[%emt 0:00:17]} 39. Qf2+ {[%emt 0:00:56]} Kg6 {[%emt 0:00:42]} 40. Nf6 {[%emt 0:01:51]} h5 {[%emt 0:02:06]} 41. Qe3 {[%emt 0:11:32]} Qa2 {[%emt 0:02:30]} 42. Ne4 {[%emt 0:00:47]} Bxe4 {[%emt 0:01:58]} 43. Qxe4+ {[%emt 0:00:01]} Kh6 {[%emt 0:00:22]} 44. Rf1 {[%emt 0:00:51]} Kg7 {[%emt 0:00:37]} 45. Qf5 {[%emt 0:01:06]} 1-0

[Event "Reykjavik Open 2025"]
[Site "Reykjavik"]
[Date "2025.04.13"]
[Round "7.32"]
[White "Blanchet, Mathieu"]
[Black "Kavutskiy, Kostya"]
[Result "0-1"]
[Annotator "ChessBase"]
[ECO "E61"]
[WhiteElo "2091"]
[BlackElo "2351"]
[PlyCount "66"]
[EventDate "2025.04.09"]
[EventType "swiss"]
[EventCountry "ISL"]
[SourceTitle "playchess.com"]
[Source "ChessBase"]
[SourceQuality "1"]
[TimeControl "40/5400+30:1800+30"]

1. d4 {[%emt 0:00:03]} Nf6 {[%emt 0:00:10]} 2. c4 {[%emt 0:00:05]} g6 {[%emt 0:00:07]} 3. Nc3 {[%emt 0:00:04]} Bg7 {[%emt 0:00:08]} 4. Nf3 {[%emt 0:00:07]} d6 {[%emt 0:00:26]} 5. Bg5 {[%emt 0:00:07]} h6 {[%emt 0:01:37]} 6. Bh4 {[%emt 0:00:33]} c5 {[%emt 0:00:28]} 7. d5 {[%emt 0:00:06]} g5 {[%emt 0:00:34]} 8. Bg3 {[%emt 0:00:07]} Nh5 {[%emt 0:00:08]} 9. e3 {[%emt 0:02:27]} Nxg3 {[%emt 0:00:15]} 10. hxg3 {[%emt 0:00:21]} Bxc3+ {[%emt 0:01:03]} 11. bxc3 {[%emt 0:00:08]} Kd7 {[%emt 0:00:13]} 12. Bd3 {[%emt 0:06:36]} Kc7 {[%emt 0:01:07]} 13. Qc2 {[%emt 0:02:50]} Nd7 {[%emt 0:07:44]} 14. Rb1 {[%emt 0:06:30]} Qg8 {[%emt 0:02:00]} 15. Nd2 {[%emt 0:13:03]} Qg7 {[%emt 0:05:53]} 16. Nf1 {[%emt 0:11:04]} Ne5 {[%emt 0:06:04]} 17. e4 {[%emt 0:03:42]} h5 {[%emt 0:08:37]} 18. Ne3 {[%emt 0:08:47]} h4 {[%emt 0:03:25]} 19. gxh4 {[%emt 0:00:17]} gxh4 {[%emt 0:00:29]} 20. Be2 {[%emt 0:02:39]} Qf6 {[%emt 0:04:06]} 21. Rf1 {[%emt 0:23:13]} Qf4 {[%emt 0:07:26]} 22. Kd1 {[%emt 0:07:16]} Rg8 {[%emt 0:02:15]} 23. Rb2 {[%emt 0:02:10]} Bd7 {[%emt 0:04:00]} 24. Qb1 {[%emt 0:01:49]} b6 {[%emt 0:02:20]} 25. Bd3 {[%emt 0:00:57]} Rg7 {[%emt 0:08:58]} 26. Rd2 {[%emt 0:03:57]} h3 {[%emt 0:05:06]} 27. gxh3 {[%emt 0:00:32]} Bxh3 {[%emt 0:00:23]} 28. Rh1 {[%emt 0:00:46]} Bg2 {[%emt 0:01:01]} 29. Nxg2 {[%emt 0:00:54]} Rxg2 {[%emt 0:00:24]} 30. Rf1 {[%emt 0:03:03]} Rh8 {[%emt 0:02:41]} 31. Qc2 {[%emt 0:00:48]} Kb7 {[%emt 0:02:27]} 32. Re2 {[%emt 0:00:21]} Qf3 {[%emt 0:00:51]} 33. Kd2 {[%emt 0:00:36]} Rh3 {[%emt 0:00:12]} 0-1

[Event "Reykjavik Open 2025"]
[Site "Reykjavik"]
[Date "2025.04.13"]
[Round "7.33"]
[White "Petersen, Marcel"]
[Black "Thorhallsson, Throstur"]
[Result "1/2-1/2"]
[Annotator "ChessBase"]
[ECO "B40"]
[WhiteElo "2185"]
[BlackElo "2394"]
[PlyCount "79"]
[EventDate "2025.04.09"]
[EventType "swiss"]
[EventCountry "ISL"]
[SourceTitle "playchess.com"]
[Source "ChessBase"]
[SourceQuality "1"]
[TimeControl "40/5400+30:1800+30"]

1. e4 {[%emt 0:00:03]} c5 {[%emt 0:04:03]} 2. Nf3 {[%emt 0:00:05]} e6 {[%emt 0:00:14]} 3. g3 {[%emt 0:00:07]} Nc6 {[%emt 0:01:13]} 4. Bg2 {[%emt 0:00:07]} Nf6 {[%emt 0:00:16]} 5. Qe2 {[%emt 0:00:07]} e5 {[%emt 0:00:17]} 6. O-O {[%emt 0:00:39]} Be7 {[%emt 0:00:06]} 7. c3 {[%emt 0:00:50]} d6 {[%emt 0:00:29]} 8. Na3 {[%emt 0:02:11]} O-O {[%emt 0:01:25]} 9. Nc2 {[%emt 0:02:49]} Re8 {[%emt 0:02:32]} 10. d3 {[%emt 0:05:28]} h6 {[%emt 0:01:32]} 11. Ne3 {[%emt 0:01:12]} Bf8 {[%emt 0:01:51]} 12. Nd2 {[%emt 0:05:32]} g6 {[%emt 0:03:17]} 13. a4 {[%emt 0:04:48]} b6 {[%emt 0:11:17]} 14. f4 {[%emt 0:03:31]} exf4 {[%emt 0:00:00]} 15. gxf4 {[%emt 0:00:33]} Bb7 {[%emt 0:02:20]} 16. Qf2 {[%emt 0:04:01]} Bg7 {[%emt 0:01:41]} 17. Ndc4 {[%emt 0:02:23]} Qc7 {[%emt 0:17:09]} 18. f5 {[%emt 0:09:47]} Kh7 {[%emt 0:01:10]} 19. Qg3 {[%emt 0:16:44]} Rad8 {[%emt 0:02:44]} 20. fxg6+ {[%emt 0:03:05]} fxg6 {[%emt 0:00:05]} 21. Rxf6 {[%emt 0:00:36]} Bxf6 {[%emt 0:00:08]} 22. Nd5 {[%emt 0:00:06]} Qf7 {[%emt 0:05:35]} 23. Qf4 {[%emt 0:03:26]} Rf8 {[%emt 0:11:35]} 24. Qxh6+ {[%emt 0:00:36]} Kg8 {[%emt 0:00:06]} 25. Nxf6+ {[%emt 0:00:17]} Qxf6 {[%emt 0:00:02]} 26. Bg5 {[%emt 0:00:29]} Qg7 {[%emt 0:01:23]} 27. Qxg7+ {[%emt 0:00:09]} Kxg7 {[%emt 0:00:01]} 28. Bxd8 {[%emt 0:00:09]} Rxd8 {[%emt 0:00:07]} 29. Kf2 {[%emt 0:12:47]} Ba6 {[%emt 0:04:41]} 30. b3 {[%emt 0:06:33]} Bxc4 {[%emt 0:03:54]} 31. bxc4 {[%emt 0:00:17]} Ne5 {[%emt 0:01:48]} 32. Ke2 {[%emt 0:00:16]} Rh8 {[%emt 0:02:02]} 33. h3 {[%emt 0:00:47]} Rh5 {[%emt 0:05:44]} 34. a5 {[%emt 0:02:46]} Rg5 {[%emt 0:00:15]} 35. Bf1 {[%emt 0:00:19]} Rg3 {[%emt 0:01:06]} 36. Kf2 {[%emt 0:01:06]} Rf3+ {[%emt 0:00:07]} 37. Kg2 {[%emt 0:00:29]} Re3 {[%emt 0:02:25]} 38. Kf2 {[%emt 0:01:03]} Rf3+ {[%emt 0:00:11]} 39. Kg2 {[%emt 0:00:06]} Re3 {[%emt 0:00:04]} 40. Kf2 {[%emt 0:03:03]} 1/2-1/2

[Event "Reykjavik Open 2025"]
[Site "Reykjavik"]
[Date "2025.04.13"]
[Round "7.34"]
[White "Saine, Zachary"]
[Black "Gislason, Gudmundur"]
[Result "0-1"]
[Annotator "ChessBase"]
[ECO "B06"]
[WhiteElo "2019"]
[BlackElo "2216"]
[PlyCount "80"]
[EventDate "2025.04.09"]
[EventType "swiss"]
[EventCountry "ISL"]
[SourceTitle "playchess.com"]
[Source "ChessBase"]
[SourceQuality "1"]
[TimeControl "40/5400+30:1800+30"]

1. e4 {[%emt 0:00:11]} g6 {[%emt 0:00:10]} 2. d4 {[%emt 0:00:06]} Bg7 {[%emt 0:00:08]} 3. Nc3 {[%emt 0:00:08]} a6 {[%emt 0:00:08]} 4. a4 {[%emt 0:00:49]} b6 {[%emt 0:00:07]} 5. Be3 {[%emt 0:01:35]} Bb7 {[%emt 0:00:16]} 6. Bd3 {[%emt 0:01:23]} e6 {[%emt 0:05:29]} 7. f4 {[%emt 0:04:27]} Nc6 {[%emt 0:08:26]} 8. Nf3 {[%emt 0:07:22]} Nb4 {[%emt 0:01:43]} 9. Be2 {[%emt 0:08:01]} Nf6 {[%emt 0:16:25]} 10. Nd2 {[%emt 0:02:52]} h5 {[%emt 0:02:35]} 11. O-O {[%emt 0:03:26]} Ng4 {[%emt 0:00:55]} 12. Bxg4 {[%emt 0:01:19]} hxg4 {[%emt 0:00:09]} 13. Qxg4 {[%emt 0:00:22]} Nxc2 {[%emt 0:00:13]} 14. Bf2 {[%emt 0:02:13]} Nxa1 {[%emt 0:05:47]} 15. Rxa1 {[%emt 0:00:24]} Qe7 {[%emt 0:00:13]} 16. Nf3 {[%emt 0:18:22]} O-O-O {[%emt 0:01:25]} 17. Rc1 {[%emt 0:00:50]} Qb4 {[%emt 0:09:51]} 18. Be3 {[%emt 0:07:12]} f5 {[%emt 0:04:31]} 19. exf5 {[%emt 0:08:24]} exf5 {[%emt 0:00:38]} 20. Qg3 {[%emt 0:01:19]} Rde8 {[%emt 0:02:33]} 21. Qf2 {[%emt 0:04:52]} d6 {[%emt 0:01:49]} 22. d5 {[%emt 0:00:39]} Bxc3 {[%emt 0:03:33]} 23. Rxc3 {[%emt 0:00:55]} Kb8 {[%emt 0:01:26]} 24. Qd2 {[%emt 0:01:18]} Qxa4 {[%emt 0:02:35]} 25. Ng5 {[%emt 0:02:18]} Re7 {[%emt 0:06:22]} 26. Ne6 {[%emt 0:05:33]} Rc8 {[%emt 0:00:23]} 27. Ng5 {[%emt 0:03:06]} Qb5 {[%emt 0:00:44]} 28. Rd3 {[%emt 0:00:40]} Rce8 {[%emt 0:01:27]} 29. Ne6 {[%emt 0:02:01]} a5 {[%emt 0:01:59]} 30. h3 {[%emt 0:02:47]} Ba6 {[%emt 0:05:34]} 31. Rc3 {[%emt 0:00:14]} c5 {[%emt 0:01:49]} 32. Qc2 {[%emt 0:01:51]} Qf1+ {[%emt 0:03:43]} 33. Kh2 {[%emt 0:00:02]} Bb7 {[%emt 0:01:43]} 34. Rb3 {[%emt 0:01:56]} Rxe6 {[%emt 0:01:10]} 35. dxe6 {[%emt 0:00:32]} Rxe6 {[%emt 0:00:14]} 36. Qd2 {[%emt 0:01:09]} Kc7 {[%emt 0:01:36]} 37. Qc2 {[%emt 0:03:30]} Qe1 {[%emt 0:02:10]} 38. Qd3 {[%emt 0:01:27]} a4 {[%emt 0:01:24]} 39. Rc3 {[%emt 0:01:08]} Bc6 {[%emt 0:02:41]} 40. b4 {[%emt 0:02:10]} Rxe3 {[%emt 0:00:29]} 0-1

[Event "Reykjavik Open 2025"]
[Site "Reykjavik"]
[Date "2025.04.13"]
[Round "7.35"]
[White "Wahono, Richard"]
[Black "Kadovic, Tamara"]
[Result "1/2-1/2"]
[Annotator "NA"]
[ECO "C58"]
[WhiteElo "1775"]
[BlackElo "1612"]
[PlyCount "110"]
[EventDate "2025.04.09"]
[EventType "swiss"]
[EventCountry "ISL"]
[SourceTitle "playchess.com"]
[Source "ChessBase"]
[SourceQuality "1"]
[TimeControl "40/5400+30:1800+30"]

1. e4 {[%emt 0:00:32]} e5 {[%emt 0:05:40]} 2. Nf3 {[%emt 0:00:10]} Nc6 {[%emt 0:00:38]} 3. Bc4 {[%emt 0:00:13]} Nf6 {[%emt 0:00:37]} 4. Ng5 {[%emt 0:01:09]} d5 {[%emt 0:00:16]} 5. exd5 {[%emt 0:00:16]} Na5 {[%emt 0:00:11]} 6. Bb5+ {[%emt 0:00:18]} c6 {[%emt 0:00:05]} 7. dxc6 {[%emt 0:00:09]} bxc6 {[%emt 0:00:03]} 8. Bd3 {[%emt 0:00:14]} Nd5 {[%emt 0:00:15]} 9. h4 {[%emt 0:02:37]} Nf4 {[%emt 0:01:56]} 10. Bxh7 {[%emt 0:08:43]} f6 {[%emt 0:06:15]} 11. d3 {[%emt 0:02:05]} Qe7 {[%emt 0:06:43]} 12. Bxf4 {[%emt 0:02:21]} exf4+ {[%emt 0:00:02]} 13. Kf1 {[%emt 0:00:17]} fxg5 {[%emt 0:01:27]} 14. Qh5+ {[%emt 0:04:28]} Kd8 {[%emt 0:02:13]} 15. Nc3 {[%emt 0:06:18]} g6 {[%emt 0:03:51]} 16. Qxg6 {[%emt 0:01:05]} Rxh7 {[%emt 0:01:03]} 17. Re1 {[%emt 0:00:22]} Rg7 {[%emt 0:12:06]} 18. h5 {[%emt 0:16:35]} Qxe1+ {[%emt 0:02:35]} 19. Kxe1 {[%emt 0:00:12]} Rxg6 {[%emt 0:00:04]} 20. hxg6 {[%emt 0:00:12]} Bg7 {[%emt 0:00:27]} 21. Rh7 {[%emt 0:00:08]} Bf6 {[%emt 0:03:47]} 22. g7 {[%emt 0:01:02]} Bxg7 {[%emt 0:00:07]} 23. Rxg7 {[%emt 0:00:05]} g4 {[%emt 0:01:33]} 24. Ne4 {[%emt 0:02:40]} Nb7 {[%emt 0:03:40]} 25. Nf6 {[%emt 0:04:16]} Rb8 {[%emt 0:06:22]} 26. Nxg4 {[%emt 0:02:20]} Bxg4 {[%emt 0:01:06]} 27. Rxg4 {[%emt 0:00:11]} Nc5 {[%emt 0:01:31]} 28. b3 {[%emt 0:02:19]} Ne6 {[%emt 0:00:45]} 29. Rg8+ {[%emt 0:03:54]} Kc7 {[%emt 0:00:12]} 30. Rxb8 {[%emt 0:00:15]} Kxb8 {[%emt 0:00:10]} 31. c3 {[%emt 0:00:37]} Kc7 {[%emt 0:02:37]} 32. Ke2 {[%emt 0:00:00]} Kd6 {[%emt 0:00:36]} 33. Kf3 {[%emt 0:00:10]} Ke5 {[%emt 0:00:47]} 34. a3 {[%emt 0:09:26]} Kf5 {[%emt 0:03:50]} 35. b4 {[%emt 0:00:28]} c5 {[%emt 0:10:55]} 36. b5 {[%emt 0:01:52]} Nc7 {[%emt 0:00:59]} 37. a4 {[%emt 0:00:25]} Nd5 {[%emt 0:01:11]} 38. a5 {[%emt 0:03:58]} Nxc3 {[%emt 0:03:45]} 39. b6 {[%emt 0:00:13]} Nb5 {[%emt 0:01:54]} 40. g4+ {[%emt 0:00:20]} fxg3 {[%emt 0:00:40]} 41. fxg3 {[%emt 0:32:15]} Nd4+ {[%emt 0:31:16]} 42. Ke3 {[%emt 0:00:13]} axb6 {[%emt 0:04:16]} 43. axb6 {[%emt 0:00:08]} Nc6 {[%emt 0:00:39]} 44. g4+ {[%emt 0:00:58]} Ke5 {[%emt 0:00:48]} 45. g5 {[%emt 0:00:10]} Kd6 {[%emt 0:01:11]} 46. Ke4 {[%emt 0:04:43]} Ne7 {[%emt 0:01:43]} 47. b7 {[%emt 0:00:30]} Kc7 {[%emt 0:00:35]} 48. b8=Q+ {[%emt 0:00:35]} Kxb8 {[%emt 0:00:01]} 49. Ke5 {[%emt 0:00:03]} Kc7 {[%emt 0:00:23]} 50. Ke6 {[%emt 0:03:35]} Ng6 {[%emt 0:03:09]} 51. Kd5 {[%emt 0:00:17]} Kb6 {[%emt 0:00:26]} 52. d4 {[%emt 0:00:56]} Nf4+ {[%emt 0:05:19]} 53. Kc4 {[%emt 0:00:15]} cxd4 {[%emt 0:00:45]} 54. Kxd4 {[%emt 0:00:11]} Ne6+ {[%emt 0:00:09]} 55. Ke5 {[%emt 0:00:10]} Nxg5 {[%emt 0:00:19]} 1/2-1/2